fUSD/lending_fUSD_20240724
["ID","MTS","AMOUNT","RATE_DAILY","PERIOD"]
[333097336,1721862641987,-500.0,0.00010958,2]
[333097338,1721862641997,-279.58827014,0.00010958,2]
[333097340,1721862642007,-500.0,0.00010958,2]
[333097342,1721862642016,-500.0,0.00010958,2]
[333097344,1721862642026,-500.0,0.00010958,2]
[333097346,1721862642035,-500.0,0.00010958,2]
[333097348,1721862642045,-637.56416691,0.00010958,2]
[333097350,1721862642054,-500.0,0.00010958,2]
[333097352,1721862642064,-500.0,0.00010958,2]
[333097354,1721862642074,-500.0,0.00010958,2]
[333097356,1721862642083,-500.0,0.00010958,2]
[333097358,1721862642092,-500.0,0.00010958,2]
[333097360,1721862642102,-551.01539354,0.00010958,2]
[333097362,1721862642111,-500.0,0.00010958,2]
[333097364,1721862642121,-500.0,0.00010958,2]
[333097366,1721862642134,-500.0,0.00010958,2]
[333097368,1721862642150,-500.0,0.00010958,2]
[333097370,1721862642159,-500.0,0.00010958,2]
[333097372,1721862642169,-500.0,0.00010958,2]
[333097373,1721862642179,-500.0,0.00010958,2]
[333097374,1721862642189,-500.0,0.00010958,2]
[333097375,1721862642199,-562.0016462,0.00010958,2]
[333097376,1721862642209,-500.0,0.00010958,2]
[333097377,1721862642218,-613.49,0.00010958,2]
[333097378,1721862642229,-500.0,0.00010958,2]
[333097379,1721862642238,-500.0,0.00010958,2]
[333097380,1721862642248,-500.0,0.00010958,2]
[333097381,1721862642257,-500.0,0.00010958,2]
[333097382,1721862642267,-500.0,0.00010958,2]
[333097383,1721862642277,-500.0,0.00010958,2]
[333097384,1721862642288,-500.0,0.00010958,2]
[333097385,1721862642298,-500.0,0.00010958,2]
[333097386,1721862642308,-500.0,0.00010958,2]
[333097387,1721862642317,-500.0,0.00010958,2]
[333097389,1721862642326,-500.0,0.00010958,2]
[333097391,1721862642336,-500.0,0.00010958,2]
[333097392,1721862642345,-500.0,0.00010958,2]
[333097394,1721862642354,-502.07817498,0.00010958,2]
[333097396,1721862642364,-663.96,0.00010958,2]
[333097398,1721862642376,-663.96,0.00010958,2]
[333097400,1721862642386,-663.96,0.00010958,2]
[333097402,1721862642395,-663.96,0.00010958,2]
[333097404,1721862642405,-500.0,0.00010958,2]
[333097406,1721862642415,-500.0,0.00010958,2]
[333097408,1721862642425,-500.0,0.00010958,2]
[333097410,1721862642435,-583.59,0.00010958,2]
[333097412,1721862642445,-500.0,0.00010958,2]
[333097414,1721862642454,-500.0,0.00010958,2]
[333097416,1721862642465,-500.0,0.00010958,2]
[333097418,1721862642474,-500.0,0.00010958,2]
[333097420,1721862642484,-500.0,0.00010958,2]
[333097422,1721862642494,-500.0,0.00010958,2]
[333097423,1721862642503,-610.87567285,0.00010958,2]
[333097425,1721862642513,-500.0,0.00010958,2]
[333097427,1721862642522,-500.0,0.00010958,2]
[333097429,1721862642532,-500.0,0.00010958,2]
[333097431,1721862642541,-500.0,0.00010958,2]
[333097433,1721862642551,-500.0,0.00010958,2]
[333097435,1721862642561,-500.0,0.00010958,2]
[333097437,1721862642570,-465.53188076,0.00010958,2]
[333097439,1721862642579,-274.22221122,0.00010958,2]
[333097441,1721862642589,-500.0,0.00010958,2]
[333097443,1721862642598,-500.0,0.00010958,2]
[333097445,1721862642608,-500.0,0.00010958,2]
[333097447,1721862642618,-500.0,0.00010958,2]
[333097450,1721862642628,-500.0,0.00010958,2]
[333097452,1721862642638,-514.77,0.00010958,2]
[333097454,1721862642647,-514.77,0.00010958,2]
[333097457,1721862642657,-514.77,0.00010958,2]
[333097460,1721862642666,-514.77,0.00010958,2]
[333097462,1721862642677,-500.0,0.00010958,2]
[333097463,1721862642686,-500.0,0.00010958,2]
[333097465,1721862642696,-500.0,0.00010958,2]
[333097467,1721862642705,-500.0,0.00010958,2]
[333097470,1721862642718,-500.0,0.00010958,2]
[333097471,1721862642728,-500.0,0.00010958,2]
[333097473,1721862642737,-500.0,0.00010958,2]
[333097476,1721862642747,-506.5013694,0.00010958,2]
[333097479,1721862642757,-500.0,0.00010958,2]
[333097482,1721862642766,-500.0,0.00010958,2]
[333097485,1721862642776,-500.0,0.00010958,2]
[333097488,1721862642785,-500.0,0.00010958,2]
[333097491,1721862642795,-500.0,0.00010958,2]
[333097494,1721862642804,-532.05,0.00010958,2]
[333097496,1721862642813,-500.0,0.00010958,2]
[333097498,1721862642822,-212.68842004,0.00010958,2]
[333097500,1721862642832,-500.0,0.00010958,2]
[333097501,1721862642841,-500.0,0.00010958,2]
[333097503,1721862642851,-500.0,0.00010958,2]
[333097505,1721862642860,-1029.88,0.00010958,2]
[333097507,1721862642870,-1029.88,0.00010958,2]
[333097509,1721862642881,-1029.88,0.00010958,2]
[333097511,1721862642891,-1029.88,0.00010958,2]
[333097513,1721862642900,-500.0,0.00010958,2]
[333097515,1721862642910,-500.0,0.00010958,2]
[333097517,1721862642919,-500.0,0.00010958,2]
[333097519,1721862642928,-568.76,0.00010958,2]
[333097521,1721862642937,-568.76,0.00010958,2]
[333097523,1721862642946,-568.76,0.00010958,2]
[333097525,1721862642956,-500.0,0.00010958,2]
[333097527,1721862642965,-500.0,0.00010958,2]
[333097528,1721862642975,-500.0,0.00010958,2]
[333097531,1721862642984,-500.0,0.00010958,2]
[333097532,1721862642993,-500.0,0.00010958,2]
[333097534,1721862643002,-500.0,0.00010958,2]
[333097536,1721862643012,-500.0,0.00010958,2]
[333097538,1721862643022,-500.0,0.00010958,2]
[333097540,1721862643031,-500.0,0.00010958,2]
[333097542,1721862643041,-500.0,0.00010958,2]
[333097544,1721862643050,-405.53,0.00010958,2]
[333097546,1721862643060,-500.0,0.00010958,2]
[333097548,1721862643069,-500.0,0.00010958,2]
[333097550,1721862643078,-395.97770844,0.00010958,2]
[333097555,1721862643127,-104.02229156,0.00010958,2]
[333097557,1721862643138,-500.0,0.00010958,2]
[333097559,1721862643148,-500.0,0.00010958,2]
[333097561,1721862643157,-500.0,0.00010958,2]
[333097563,1721862643167,-500.0,0.00010958,2]
[333097565,1721862643176,-500.0,0.00010958,2]
[333097567,1721862643186,-500.0,0.00010958,2]
[333097569,1721862643196,-500.0,0.00010958,2]
[333097571,1721862643205,-500.0,0.00010958,2]
[333097573,1721862643214,-500.0,0.00010958,2]
[333097575,1721862643224,-500.0,0.00010958,2]
[333097577,1721862643234,-544.14,0.00010958,2]
[333097578,1721862643243,-544.14,0.00010958,2]
[333097580,1721862643253,-544.14,0.00010958,2]
[333097582,1721862643262,-544.14,0.00010958,2]
[333097610,1721862643539,-500.0,0.00010958,2]
[333097612,1721862643549,-404.34576589,0.00010958,2]
[333097614,1721862643558,-1735.57194255,0.00010958,2]
[333097616,1721862643570,-583.5699975,0.00010958,2]
[333097618,1721862643581,-1461.44805995,0.00010958,2]
[333097620,1721862643590,-500.0,0.00010958,2]
[333097622,1721862643600,-1239.22821385,0.00010958,2]
[333097624,1721862643611,-256.89893274,0.00010958,2]
[333097654,1721862643949,-1074.0,0.00010483,2]
[333097655,1721862643959,-150.0,0.00010704,2]
[333097656,1721862643969,-150.0,0.00010704,2]
[333097657,1721862643979,-150.0,0.00010705,2]
[333097658,1721862643988,-150.0,0.00010705,2]
[333097659,1721862643997,-1500.0,0.0001072,2]
[333097660,1721862644007,-150.0,0.0001074,2]
[333097661,1721862644018,-150.0,0.00010746,2]
[333097662,1721862644027,-150.0,0.00010754,2]
[333097663,1721862644037,-150.0,0.00010757,2]
[333097664,1721862644046,-150.0,0.00010778,2]
[333097665,1721862644056,-150.0,0.00010784,2]
[333097666,1721862644066,-150.0,0.00010786,2]
[333097667,1721862644076,-150.0,0.00010786,2]
[333097669,1721862644086,-150.0,0.000108,2]
[333097671,1721862644096,-150.0,0.00010813,2]
[333097673,1721862644106,-150.0,0.00010818,2]
[333097675,1721862644116,-150.0,0.00010822,2]
[333097676,1721862644126,-150.0,0.00010829,2]
[333097678,1721862644136,-150.0,0.00010846,2]
[333097681,1721862644147,-150.0,0.00010853,2]
[333097683,1721862644157,-150.0,0.00010856,2]
[333097685,1721862644167,-150.0,0.00010871,2]
[333097686,1721862644177,-150.0,0.00010872,2]
[333097688,1721862644187,-150.0,0.00010879,2]
[333097690,1721862644198,-150.0,0.00010887,2]
[333097692,1721862644207,-150.0,0.00010896,2]
[333097694,1721862644217,-150.0,0.00010897,2]
[333097696,1721862644228,-225.0,0.000109,2]
[333097699,1721862644238,-150.0,0.00010904,2]
[333097700,1721862644247,-150.0,0.00010905,2]
[333097702,1721862644257,-150.0,0.00010911,2]
[333097704,1721862644267,-150.0,0.00010917,2]
[333097706,1721862644277,-150.0,0.00010919,2]
[333097708,1721862644287,-150.0,0.00010922,2]
[333097710,1721862644297,-150.0,0.00010922,2]
[333097712,1721862644307,-150.0,0.00010929,2]
[333097714,1721862644317,-150.0,0.00010934,2]
[333097716,1721862644327,-150.0,0.00010934,2]
[333097718,1721862644337,-150.0,0.00010938,2]
[333097720,1721862644347,-150.0,0.00010941,2]
[333097722,1721862644356,-150.0,0.00010944,2]
[333097724,1721862644368,-150.0,0.00010946,2]
[333097726,1721862644379,-2284.46285341,0.00010958,2]
[333097728,1721862644389,-3780.59,0.00010958,2]
[333097730,1721862644398,-3780.59,0.00010958,2]
[333097732,1721862644407,-500.0,0.00010958,2]
[333097734,1721862644417,-320.69172986,0.00010958,2]
[333097736,1721862644427,-500.0,0.00010958,2]
[333097738,1721862644437,-500.0,0.00010958,2]
[333097740,1721862644447,-500.0,0.00010958,2]
[333097742,1721862644458,-637.54702058,0.00010958,2]
[333097744,1721862644468,-728.52,0.00010958,2]
[333097746,1721862644478,-728.52,0.00010958,2]
[333097748,1721862644488,-728.52,0.00010958,2]
[333097750,1721862644498,-728.52,0.00010958,2]
[333097752,1721862644508,-500.0,0.00010958,2]
[333097754,1721862644518,-500.0,0.00010958,2]
[333097756,1721862644527,-500.0,0.00010958,2]
[333097758,1721862644538,-500.0,0.00010958,2]
[333097760,1721862644547,-500.0,0.00010958,2]
[333097762,1721862644558,-500.0,0.00010958,2]
[333097764,1721862644568,-500.0,0.00010958,2]
[333097766,1721862644577,-500.0,0.00010958,2]
[333097768,1721862644587,-2643.37,0.00010958,2]
[333097770,1721862644598,-2643.37,0.00010958,2]
[333097772,1721862644607,-2643.37,0.00010958,2]
[333097774,1721862644617,-500.0,0.00010958,2]
[333097776,1721862644627,-500.0,0.00010958,2]
[333097778,1721862644637,-500.0,0.00010958,2]
[333097780,1721862644648,-500.0,0.00010958,2]
[333097782,1721862644658,-583.11,0.00010958,2]
[333097784,1721862644668,-583.11,0.00010958,2]
[333097786,1721862644679,-583.11,0.00010958,2]
[333097788,1721862644689,-583.11,0.00010958,2]
[333097790,1721862644699,-500.0,0.00010958,2]
[333097792,1721862644709,-500.0,0.00010958,2]
[333097794,1721862644730,-500.0,0.00010958,2]
[333097796,1721862644742,-500.0,0.00010958,2]
[333097798,1721862644752,-500.0,0.00010958,2]
[333097800,1721862644761,-500.0,0.00010958,2]
[333097801,1721862644771,-1208.67,0.00010958,2]
[333097803,1721862644781,-1208.67,0.00010958,2]
[333097805,1721862644792,-1208.67,0.00010958,2]
[333097807,1721862644802,-1208.67,0.00010958,2]
[333097809,1721862644811,-500.0,0.00010958,2]
[333097811,1721862644821,-500.0,0.00010958,2]
[333097813,1721862644830,-500.0,0.00010958,2]
[333097815,1721862644840,-500.0,0.00010958,2]
[333097817,1721862644850,-500.0,0.00010958,2]
[333097819,1721862644860,-479.39064724,0.00010958,2]
[333097821,1721862644870,-500.0,0.00010958,2]
[333097823,1721862644882,-500.0,0.00010958,2]
[333097824,1721862644892,-500.0,0.00010958,2]
[333097827,1721862644903,-150.0,0.00010958,2]
[333097828,1721862644913,-1334.85,0.00010959,5]
[333097830,1721862644923,-150.0,0.00010959,2]
[333097832,1721862644933,-250.0,0.00010959,2]
[333097834,1721862644943,-4800.0,0.00010968,3]
[333097836,1721862644952,-151.27753342,0.00010969,2]
[333097838,1721862644962,-540.23309382,0.00010969,2]
[333097840,1721862644971,-500.0,0.00010969,2]
[333097841,1721862644981,-500.0,0.00010969,2]
[333097843,1721862644991,-500.0,0.00010969,2]
[333097845,1721862645001,-500.0,0.00010969,2]
[333097847,1721862645011,-568.76,0.00010969,2]
[333097849,1721862645020,-500.0,0.00010969,2]
[333097851,1721862645030,-500.0,0.00010969,2]
[333097853,1721862645040,-500.0,0.00010969,2]
[333097855,1721862645050,-500.0,0.00010969,2]
[333097857,1721862645060,-500.0,0.00010969,2]
[333097859,1721862645070,-2643.37,0.00010969,2]
[333097861,1721862645080,-500.0,0.00010969,2]
[333097863,1721862645092,-500.0,0.00010969,2]
[333097866,1721862645102,-500.0,0.00010969,2]
[333097868,1721862645112,-500.0,0.00010969,2]
[333097869,1721862645121,-504.81,0.0001097,2]
[333097871,1721862645133,-500.0,0.0001097,2]
[333097873,1721862645143,-500.0,0.0001097,2]
[333097876,1721862645157,-493.32,0.0001097,2]
[333097878,1721862645168,-500.0,0.0001097,2]
[333097880,1721862645179,-500.0,0.0001097,2]
[333097882,1721862645189,-500.0,0.0001097,2]
[333097884,1721862645200,-500.0,0.0001097,2]
[333097886,1721862645210,-663.96,0.0001097,2]
[333097888,1721862645221,-500.0,0.0001097,2]
[333097890,1721862645231,-500.0,0.0001097,2]
[333097892,1721862645240,-514.77,0.0001097,2]
[333097894,1721862645250,-500.0,0.0001097,2]
[333097896,1721862645260,-1029.88,0.0001097,2]
[333097898,1721862645270,-500.0,0.0001097,2]
[333097900,1721862645279,-500.0,0.0001097,2]
[333097901,1721862645290,-500.0,0.0001097,2]
[333097903,1721862645300,-544.14,0.0001097,2]
[333097905,1721862645310,-1188.55691174,0.0001097,2]
[333097976,1721862646013,-2592.03308826,0.0001097,2]
[333097979,1721862646024,-728.52,0.0001097,2]
[333097981,1721862646034,-500.0,0.0001097,2]
[333097983,1721862646043,-500.0,0.0001097,2]
[333097985,1721862646054,-583.11,0.0001097,2]
[333097987,1721862646064,-1208.67,0.0001097,2]
[333097989,1721862646074,-581.0,0.00010971,2]
[333097991,1721862646083,-2338.2019664,0.00010971,2]
[333097993,1721862646093,-420.0862884,0.00010971,2]
[333097995,1721862646103,-1076.2454054,0.00010971,2]
[333097997,1721862646112,-2305.14494916,0.00010971,2]
[333097999,1721862646124,-1835.71942874,0.00010971,2]
[333098001,1721862646134,-3785.90205713,0.00010971,2]
[333098004,1721862646150,-379.70743477,0.00010971,2]
[333098006,1721862646160,-210.2100726,0.00010971,2]
[333098008,1721862646169,-48679.48177789,0.00010971,2]
[333098010,1721862646181,-1501.05172861,0.00010971,2]
[333098012,1721862646190,-872.05408845,0.00010977,2]
[333098014,1721862646200,-699.66733288,0.00010977,2]
[333098016,1721862646210,-1048.90545777,0.00010978,2]
[333098018,1721862646220,-500.0,0.00010978,2]
[333098020,1721862646229,-500.0,0.00010978,2]
[333098022,1721862646239,-435.69266473,0.00010978,2]
[333098024,1721862646251,-64.30733527,0.00010978,2]
[333098026,1721862646260,-500.0,0.00010978,2]
[333098028,1721862646271,-500.0,0.00010978,2]
[333098029,1721862646280,-500.0,0.00010978,2]
[333098031,1721862646290,-500.0,0.00010978,2]
[333098033,1721862646300,-500.0,0.00010978,2]
[333098035,1721862646310,-500.0,0.00010978,2]
[333098037,1721862646319,-663.96,0.00010978,2]
[333098039,1721862646329,-500.0,0.00010978,2]
[333098041,1721862646338,-106.15149353,0.00010978,2]
[333098043,1721862646349,-301.88553806,0.00010978,2]
[333098045,1721862646365,-91.96296841,0.00010978,2]
[333098047,1721862646375,-170.19505659,0.00010978,2]
[333098049,1721862646389,-326.57625,0.00010978,2]
[333098074,1721862647788,-17.99869341,0.00010978,2]
[333098075,1721862647799,-500.0,0.00010978,2]
[333098076,1721862647809,-500.0,0.00010978,2]
[333098077,1721862647819,-500.0,0.00010978,2]
[333098078,1721862647885,-500.0,0.00010978,2]
[333098079,1721862647897,-1029.88,0.00010978,2]
[333098080,1721862647907,-500.0,0.00010978,2]
[333098081,1721862647919,-568.76,0.00010978,2]
[333098082,1721862647930,-533.92,0.00010978,2]
[333098083,1721862647940,-500.0,0.00010978,2]
[333098084,1721862647951,-500.0,0.00010978,2]
[333098085,1721862647961,-500.0,0.00010978,2]
[333098086,1721862647971,-500.0,0.00010978,2]
[333098087,1721862647981,-500.0,0.00010978,2]
[333098088,1721862647991,-544.14,0.00010978,2]
[333098089,1721862648002,-1040.09128095,0.00010978,2]
[333098090,1721862648014,-2740.49871905,0.00010978,2]
[333098091,1721862648025,-500.0,0.00010978,2]
[333098092,1721862648035,-728.52,0.00010978,2]
[333098093,1721862648045,-500.0,0.00010978,2]
[333098094,1721862648055,-625.36713254,0.00010978,2]
[333098095,1721862648065,-2141.56403,0.00010978,2]
[333098097,1721862648076,-501.80597,0.00010978,2]
[333098099,1721862648086,-500.0,0.00010978,2]
[333098101,1721862648097,-583.11,0.00010978,2]
[333098103,1721862648107,-500.0,0.00010978,2]
[333098105,1721862648118,-500.0,0.00010978,2]
[333098107,1721862648134,-693.91303,0.00010978,2]
[333098110,1721862648154,-409.60653138,0.00010978,2]
[333098112,1721862648166,-105.15043862,0.00010978,2]
[333098114,1721862648176,-500.0,0.00010978,2]
[333098116,1721862648190,-525.5371887,0.00010978,2]
[333098118,1721862648200,-2544.22346902,0.00010979,2]
[333098120,1721862648216,-3629.39679692,0.00010979,2]
[333098122,1721862648226,-654.82093907,0.00010979,3]
[333098124,1721862648235,-151.0,0.00010979,2]
[333098126,1721862648245,-151.0,0.00010979,2]
[333098128,1721862648255,-500.0,0.00010979,2]
[333098130,1721862648264,-500.0,0.00010979,2]
[333098132,1721862648273,-500.0,0.00010979,2]
[333098134,1721862648283,-500.0,0.00010979,2]
[333098136,1721862648293,-500.0,0.00010979,2]
[333098138,1721862648303,-522.75739331,0.00010979,2]
[333098140,1721862648313,-500.0,0.00010979,2]
[333098142,1721862648323,-515.05478398,0.00010979,2]
[333098143,1721862648332,-500.0,0.00010979,2]
[333098145,1721862648342,-500.0,0.00010979,2]
[333098147,1721862648353,-500.0,0.00010979,2]
[333098149,1721862648362,-500.0,0.00010979,2]
[333098151,1721862648371,-500.0,0.00010979,2]
[333098153,1721862648384,-500.0,0.00010979,2]
[333098155,1721862648394,-500.0,0.00010979,2]
[333098157,1721862648403,-500.0,0.00010979,2]
[333098159,1721862648413,-500.0,0.00010979,2]
[333098160,1721862648422,-500.0,0.00010979,2]
[333098162,1721862648432,-582.92366363,0.00010979,2]
[333098164,1721862648442,-500.0,0.00010979,2]
[333098165,1721862648452,-500.0,0.00010979,2]
[333098166,1721862648461,-500.0,0.00010979,2]
[333098167,1721862648471,-500.0,0.00010979,2]
[333098168,1721862648480,-500.0,0.00010979,2]
[333098169,1721862648489,-500.0,0.00010979,2]
[333098170,1721862648499,-500.0,0.00010979,2]
[333098171,1721862648508,-500.0,0.00010979,2]
[333098172,1721862648519,-500.0,0.00010979,2]
[333098173,1721862648528,-500.0,0.00010979,2]
[333098174,1721862648537,-615.16,0.00010979,2]
[333098175,1721862648547,-500.0,0.00010979,2]
[333098176,1721862648556,-440.43614534,0.00010979,2]
[333098177,1721862648566,-346.11,0.00010979,2]
[333098178,1721862648575,-500.0,0.00010979,2]
[333098179,1721862648584,-500.00005683,0.00010979,2]
[333098180,1721862648593,-2376.32,0.00010979,2]
[333098181,1721862648603,-500.0,0.00010979,2]
[333098182,1721862648612,-500.0,0.00010979,2]
[333098183,1721862648621,-500.0,0.00010979,2]
[333098184,1721862648636,-500.0,0.00010979,2]
[333098185,1721862648646,-500.0,0.00010979,2]
[333098186,1721862648656,-500.0,0.00010979,2]
[333098187,1721862648666,-209.5270684,0.00010979,2]
[333098188,1721862648677,-500.0,0.00010979,2]
[333098189,1721862648687,-500.0,0.00010979,2]
[333098190,1721862648701,-500.0,0.00010979,2]
[333098191,1721862648711,-500.0,0.00010979,2]
[333098192,1721862648725,-152.34,0.00010979,2]
[333098193,1721862648734,-663.96,0.00010979,2]
[333098194,1721862648744,-663.96,0.00010979,2]
[333098195,1721862648754,-663.96,0.00010979,2]
[333098196,1721862648764,-663.96,0.00010979,2]
[333098197,1721862648775,-663.96,0.00010979,2]
[333098198,1721862648784,-663.96,0.00010979,2]
[333098199,1721862648794,-663.96,0.00010979,2]
[333098200,1721862648804,-663.96,0.00010979,2]
[333098201,1721862648814,-663.96,0.00010979,2]
[333098202,1721862648823,-663.96,0.00010979,2]
[333098203,1721862648832,-663.96,0.00010979,2]
[333098204,1721862648842,-500.0,0.00010979,2]
[333098205,1721862648855,-429.96160867,0.00010979,2]
[333098206,1721862648864,-500.0,0.00010979,2]
[333098207,1721862648874,-500.0,0.00010979,2]
[333098208,1721862648888,-376.17,0.00010979,2]
[333098209,1721862648900,-500.0,0.00010979,2]
[333098210,1721862648910,-514.77,0.00010979,2]
[333098211,1721862648921,-500.0,0.00010979,2]
[333098212,1721862648932,-514.77,0.00010979,2]
[333098213,1721862648943,-500.0,0.00010979,2]
[333098214,1721862648954,-514.77,0.00010979,2]
[333098215,1721862648964,-500.0,0.00010979,2]
[333098216,1721862648974,-514.77,0.00010979,2]
[333098217,1721862648985,-500.0,0.00010979,2]
[333098218,1721862648996,-514.77,0.00010979,2]
[333098219,1721862649008,-500.0,0.00010979,2]
[333098220,1721862649019,-514.77,0.00010979,2]
[333098221,1721862649030,-500.0,0.00010979,2]
[333098222,1721862649041,-514.77,0.00010979,2]
[333098223,1721862649052,-204.82346909,0.00010979,2]
[333098224,1721862649061,-514.77,0.00010979,2]
[333098225,1721862649071,-514.77,0.00010979,2]
[333098226,1721862649080,-500.0,0.00010979,2]
[333098227,1721862649090,-514.77,0.00010979,2]
[333098228,1721862649101,-500.0,0.00010979,2]
[333098229,1721862649112,-500.0,0.00010979,2]
[333098230,1721862649122,-514.77,0.00010979,2]
[333098231,1721862649135,-500.0,0.00010979,2]
[333098232,1721862649145,-500.0,0.00010979,2]
[333098233,1721862649155,-500.0,0.00010979,2]
[333098234,1721862649165,-280.82534519,0.00010979,2]
[333098235,1721862649175,-500.0,0.00010979,2]
[333098236,1721862649185,-500.0,0.00010979,2]
[333098237,1721862649196,-500.0,0.00010979,2]
[333098238,1721862649206,-500.0,0.00010979,2]
[333098239,1721862649216,-500.0,0.00010979,2]
[333098240,1721862649227,-500.0,0.00010979,2]
[333098241,1721862649237,-500.0,0.00010979,2]
[333098242,1721862649247,-500.0,0.00010979,2]
[333098243,1721862649257,-500.0,0.00010979,2]
[333098244,1721862649267,-500.0,0.00010979,2]
[333098245,1721862649277,-341.2255259,0.00010979,2]
[333098246,1721862649287,-500.0,0.00010979,2]
[333098247,1721862649296,-500.0,0.00010979,2]
[333098248,1721862649306,-1029.88,0.00010979,2]
[333098249,1721862649317,-1029.88,0.00010979,2]
[333098250,1721862649328,-1029.88,0.00010979,2]
[333098251,1721862649338,-1029.88,0.00010979,2]
[333098252,1721862649349,-1029.88,0.00010979,2]
[333098253,1721862649358,-1029.88,0.00010979,2]
[333098254,1721862649368,-1029.88,0.00010979,2]
[333098255,1721862649378,-1029.88,0.00010979,2]
[333098256,1721862649389,-1029.88,0.00010979,2]
[333098257,1721862649399,-1029.88,0.00010979,2]
[333098258,1721862649410,-1029.88,0.00010979,2]
[333098259,1721862649420,-500.0,0.00010979,2]
[333098260,1721862649431,-500.0,0.00010979,2]
[333098261,1721862649441,-500.0,0.00010979,2]
[333098262,1721862649451,-500.0,0.00010979,2]
[333098263,1721862649462,-500.0,0.00010979,2]
[333098264,1721862649472,-500.0,0.00010979,2]
[333098265,1721862649482,-500.0,0.00010979,2]
[333098266,1721862649491,-568.76,0.00010979,2]
[333098267,1721862649501,-500.0,0.00010979,2]
[333098268,1721862649511,-561.29128322,0.00010979,2]
[333098269,1721862649521,-568.76,0.00010979,2]
[333098270,1721862649530,-568.76,0.00010979,2]
[333098271,1721862649539,-568.76,0.00010979,2]
[333098272,1721862649549,-568.76,0.00010979,2]
[333098273,1721862649558,-568.76,0.00010979,2]
[333098274,1721862649567,-568.76,0.00010979,2]
[333098275,1721862649576,-568.76,0.00010979,2]
[333098276,1721862649586,-568.76,0.00010979,2]
[333098277,1721862649595,-568.76,0.00010979,2]
[333098278,1721862649605,-568.76,0.00010979,2]
[333098279,1721862649614,-500.0,0.00010979,2]
[333098280,1721862649623,-500.0,0.00010979,2]
[333098281,1721862649634,-500.0,0.00010979,2]
[333098282,1721862649645,-500.0,0.00010979,2]
[333098283,1721862649655,-500.0,0.00010979,2]
[333098284,1721862649664,-500.0,0.00010979,2]
[333098285,1721862649674,-500.0,0.00010979,2]
[333098286,1721862649684,-500.0,0.00010979,2]
[333098287,1721862649694,-500.0,0.00010979,2]
[333098288,1721862649704,-536.14741777,0.00010979,2]
[333098289,1721862649714,-500.0,0.00010979,2]
[333098290,1721862649728,-500.0,0.00010979,2]
[333098291,1721862649738,-500.0,0.00010979,2]
[333098292,1721862649748,-500.0,0.00010979,2]
[333098293,1721862649758,-500.0,0.00010979,2]
[333098294,1721862649768,-500.0,0.00010979,2]
[333098295,1721862649777,-500.0,0.00010979,2]
[333098296,1721862649788,-500.0,0.00010979,2]
[333098297,1721862649798,-500.0,0.00010979,2]
[333098298,1721862649808,-359.56820522,0.00010979,2]
[333098299,1721862649818,-500.0,0.00010979,2]